bitfinex/quotes_ETHUSD_20260121
["timestamp","ask_amount","ask_price","bid_price","bid_amount"]
[1769020613314,12.33562872,2908.8,2907.3,0.568]
[1769020613616,12.33562872,2908.8,2907.0,0.10332357]
[1769020613783,12.33562872,2908.6,2907.0,0.10332357]
[1769020613989,12.33562872,2908.6,2906.8,0.10532357]
[1769020614495,12.33562872,2908.6,2907.0,0.10332357]
[1769020614704,12.90362872,2908.5,2907.0,0.10332357]
[1769020615017,0.568,2908.4,2907.0,0.10332357]
[1769020615320,3.43843482,2908.3,2907.0,0.10332357]
[1769020615610,15.77406354,2908.3,2907.0,0.10332357]
[1769020615814,19.21249836,2908.3,2907.0,0.10332357]
[1769020616011,15.77406354,2908.3,2907.0,0.10332357]
[1769020616318,16.34206354,2908.3,2907.0,0.10332357]
[1769020616919,12.90362872,2908.3,2907.0,0.10332357]
[1769020617435,12.33562872,2908.3,2907.2,0.002]
[1769020617587,3.43809583,2908.6,2907.2,0.002]
[1769020617787,0.568,2908.5,2907.2,0.002]
[1769020617986,12.90362872,2908.5,2907.2,0.002]
[1769020618788,12.90362872,2908.5,2907.0,0.10532357]
[1769020618988,11.48504479,2908.3,2907.0,0.10532357]
[1769020619187,11.48504479,2908.1,2907.0,0.002]
[1769020619405,11.48504479,2907.9,2906.8,0.002]
[1769020619618,11.48504479,2907.9,2906.4,0.10332357]
[1769020619816,11.48504479,2907.9,2906.4,3.54399414]
[1769020620021,13.32130718,2907.8,2906.4,0.10332357]
[1769020620229,11.48504479,2907.6,2906.1,0.10332357]
[1769020620546,11.48504479,2907.6,2905.8,0.10532357]
[1769020620828,11.48504479,2907.4,2905.8,0.10532357]
[1769020620990,11.48504479,2907.4,2905.8,0.002]
[1769020621189,11.48504479,2907.2,2905.8,0.002]
[1769020621391,11.48504479,2907.0,2905.8,0.002]
[1769020621628,11.48504479,2906.8,2905.8,0.002]
[1769020622936,0.128,2906.7,2905.4,0.002]
[1769020623097,12.64634927,2906.6,2905.4,0.002]
[1769020623295,11.48504479,2906.6,2905.4,0.002]
[1769020623494,11.48504479,2906.4,2904.9,1e-08]
[1769020623987,11.48504479,2906.4,2904.7,0.002]
[1769020624935,11.48504479,2906.2,2904.7,0.002]
[1769020625131,11.48504479,2905.8,2904.7,0.002]
[1769020625642,11.48504479,2905.6,2904.7,0.002]
[1769020625936,11.48504479,2905.6,2904.3,1e-08]
[1769020626598,4.01051151,2905.7,2904.5,0.10332357]
[1769020627146,11.48504479,2906.0,2904.5,0.10332357]
[1769020627345,3.44116965,2906.0,2904.5,0.10332357]
[1769020627638,11.48504479,2905.7,2904.5,0.10332357]
[1769020627813,7.45163016,2905.9,2904.5,0.10332357]
[1769020628134,18.93667495,2905.9,2904.5,0.10332357]
[1769020629362,0.128,2906.2,2904.9,0.10332357]
[1769020629633,3.44094228,2906.2,2904.9,0.10332357]
[1769020629812,14.92589666,2906.3,2904.9,0.10332357]
[1769020630326,11.48504479,2906.3,2904.9,3.5457735]
[1769020630656,0.569,2906.4,2904.9,3.5457735]
[1769020630968,12.05404479,2906.4,2904.9,0.49886792]
[1769020631560,0.128,2906.7,2905.1,11.650605]
[1769020631762,11.48504479,2907.2,2905.3,11.650605]
[1769020631965,0.128,2907.1,2905.3,11.650605]
[1769020632423,11.61304479,2907.1,2905.3,11.650605]
[1769020632623,11.61304479,2907.1,2905.3,0.10332357]
[1769020633457,11.48504479,2906.6,2905.1,0.10332357]
[1769020633629,10.32098253,2906.7,2905.1,0.10332357]
[1769020633630,11.48504479,2906.4,2905.1,0.10332357]
[1769020635075,2.18060273,2906.5,2905.1,15.09278223]
[1769020635242,0.128,2906.6,2905.3,0.10332357]
[1769020635445,11.78313544,2907.5,2905.4,6.88373372]
[1769020635627,0.128,2907.3,2905.7,0.10332357]
[1769020635830,0.128,2907.3,2905.7,12.13919471]
[1769020636331,0.128,2907.3,2905.9,0.10332357]
[1769020637063,11.91113544,2907.3,2905.9,0.10332357]
[1769020637577,0.697,2907.5,2906.0,3.44115622]
[1769020637874,0.697,2907.5,2906.0,0.39554435]
[1769020638464,12.48013544,2907.5,2906.0,0.39554435]
[1769020639971,3.4394992,2907.4,2906.0,0.39554435]
[1769020640464,15.91955536,2907.5,2906.0,3.83669758]
[1769020640670,12.35213544,2907.4,2906.0,0.39554435]
[1769020640839,11.78313544,2907.0,2905.5,0.67232357]
[1769020641178,0.697,2907.4,2905.5,0.67232357]
[1769020641179,12.96144898,2906.9,2905.5,0.67232357]
[1769020641347,12.96144898,2906.9,2905.3,3.54520928]
[1769020641348,12.96144898,2906.9,2905.3,0.10332357]
[1769020641775,11.78313544,2906.7,2904.9,0.10332357]
[1769020641936,11.78313544,2906.3,2904.7,0.002]
[1769020642647,11.78313544,2906.3,2904.7,3.44468447]
[1769020642830,11.78313544,2906.1,2904.7,3.44468447]
[1769020643035,3.44068263,2906.4,2904.9,12.13919471]
[1769020643338,11.78313544,2906.5,2904.9,12.13919471]
[1769020643532,4.13744588,2906.6,2905.1,0.10332357]
[1769020643737,0.128,2906.6,2905.3,0.10332357]
[1769020644266,3.44038962,2906.7,2905.3,3.54527006]
[1769020644479,18.66393651,2906.7,2905.3,0.10332357]
[1769020644849,11.78313544,2906.6,2905.3,0.10332357]
[1769020645572,11.78313544,2906.6,2905.1,0.10332357]
[1769020645777,11.78313544,2906.4,2905.1,0.10332357]
[1769020646077,3.44080101,2906.3,2905.1,0.10332357]
[1769020647177,11.78313544,2906.4,2905.1,0.10332357]
[1769020647347,3.56832751,2906.7,2905.3,12.13919471]
[1769020647547,7.00865502,2906.7,2905.3,12.13919471]
[1769020647738,7.00865502,2906.7,2905.3,0.10332357]
[1769020647739,18.79179046,2906.7,2905.3,0.10332357]
[1769020648980,3.56832751,2906.7,2905.5,0.10332357]
[1769020649151,4.13732751,2906.7,2905.5,0.10332357]
[1769020649349,11.78413544,2907.3,2905.7,12.13919471]
[1769020649553,11.78413544,2907.3,2905.9,0.10332357]
[1769020649752,15.22376889,2907.3,2905.9,0.10332357]
[1769020649986,18.66340234,2907.3,2905.9,0.10332357]
[1769020650375,15.22376889,2907.3,2905.9,0.10332357]
[1769020650572,18.66340234,2907.3,2905.9,3.54457525]
[1769020650755,15.22376889,2907.3,2905.9,3.54457525]
[1769020651296,0.129,2907.3,2906.1,0.10332357]
[1769020651585,0.001,2907.3,2906.3,0.10332357]
[1769020651794,0.128,2907.6,2906.5,0.10332357]
[1769020652001,3.56681532,2908.0,2906.7,0.10332357]
[1769020652205,0.128,2908.0,2906.7,0.10332357]
[1769020652407,3.4383166,2908.4,2906.9,0.10332357]
[1769020652560,3.43796197,2908.7,2907.1,6.98302501]
[1769020652869,3.43886568,2908.8,2907.5,0.10332357]
[1769020652870,3.43886002,2908.8,2907.5,0.10332357]
[1769020653267,6.87672004,2908.8,2907.5,0.10332357]
[1769020653467,11.78313544,2908.7,2907.5,0.10332357]
[1769020653869,11.78313544,2908.5,2907.3,0.10332357]
[1769020654275,11.78313544,2908.5,2907.1,0.10332357]
[1769020654675,3.4383166,2908.4,2907.1,0.10332357]
[1769020655205,0.001,2908.6,2907.3,0.10332357]
[1769020655503,0.128,2908.9,2907.7,0.10332357]
[1769020655672,3.43720182,2909.4,2908.2,0.10332357]
[1769020656087,6.87440364,2909.4,2908.2,0.10332357]
[1769020656281,18.65753908,2909.4,2908.2,0.10332357]
[1769020656819,22.0947409,2909.4,2907.9,0.10332357]
[1769020657108,11.78313544,2909.1,2907.7,1e-08]
[1769020657306,11.78313544,2908.9,2907.7,1e-08]
[1769020657470,11.78313544,2908.9,2907.5,0.10332357]
[1769020657670,11.78313544,2908.7,2907.5,1e-08]
[1769020657883,0.569,2908.9,2907.3,0.10332357]
[1769020657884,12.96144898,2908.6,2907.3,1e-08]
[1769020658700,11.78313544,2908.4,2907.3,1e-08]
[1769020659780,3.43819838,2908.5,2907.3,1e-08]
[1769020659976,11.78313544,2908.4,2907.3,1e-08]
[1769020660726,6.87639676,2908.5,2907.3,1e-08]
[1769020660896,4.75786322,2908.5,2907.3,1e-08]
[1769020661233,8.1960616,2908.5,2907.3,1e-08]
[1769020661389,19.97919704,2908.5,2907.3,1e-08]
[1769020662010,23.41739542,2908.5,2907.1,0.10332357]
[1769020662223,19.97919704,2908.5,2907.1,0.10332357]
[1769020662428,2.11575106,2908.4,2907.3,0.10332357]
[1769020662587,8.7650616,2908.5,2907.3,0.10332357]
[1769020662936,11.78313544,2908.4,2907.1,0.10332357]
[1769020663115,11.78313544,2908.2,2906.2,3.44082269]
[1769020663286,11.78313544,2908.2,2906.7,1e-08]
[1769020664890,11.78313544,2908.0,2906.7,1e-08]
[1769020665097,1.8660478,2907.9,2906.7,1e-08]
[1769020665325,13.64918324,2907.9,2906.7,1e-08]
[1769020666088,11.71908828,2907.7,2906.3,0.10332357]
[1769020666815,11.71908828,2907.7,2906.9,0.002]
[1769020667022,6.87852524,2907.6,2906.3,0.10332357]
[1769020667333,11.71908828,2907.5,2906.6,0.002]
[1769020667924,11.71908828,2907.5,2906.3,0.10332357]
[1769020669013,3.4394992,2907.4,2906.3,0.09803101]
[1769020669205,3.4394992,2907.4,2906.3,0.06980877]
[1769020669806,11.62105788,2907.3,2906.1,0.10332357]
[1769020669991,13.56909391,2907.2,2906.1,0.10332357]
[1769020670395,1.85000563,2907.2,2906.1,0.10332357]
[1769020670616,3.43943942,2907.5,2906.3,0.10332357]
[1769020670828,3.43943942,2907.5,2906.5,0.10332357]
[1769020671012,3.56714434,2907.7,2906.5,0.09799298]
[1769020671215,15.28623262,2907.7,2906.5,0.08407502]
[1769020671629,18.72537696,2907.7,2906.5,0.08407502]
[1769020671796,19.17467834,2907.7,2906.5,0.08407502]
[1769020672491,3.43879904,2908.0,2906.7,0.10332357]
[1769020672730,6.87759808,2908.0,2906.9,0.10332357]
[1769020673129,18.72443086,2908.1,2906.9,0.10332357]
[1769020674732,19.29343086,2908.1,2906.9,0.10332357]
[1769020675103,11.71908828,2907.8,2906.8,3.84]
[1769020675299,11.71908828,2907.8,2906.7,0.10332357]
[1769020677043,7.4468156,2907.9,2906.7,0.10332357]
[1769020677446,4.0079078,2907.9,2906.7,0.10332357]
[1769020677917,7.4468156,2907.9,2906.7,0.10332357]
[1769020679348,20.28332465,2907.9,2906.7,0.10332357]
[1769020679648,12.83750905,2907.6,2906.3,0.10332357]
[1769020680349,12.83650905,2907.4,2905.4,12.39307496]
[1769020680516,12.83650905,2907.4,2905.3,0.10332357]
[1769020680916,12.83650905,2907.4,2905.4,3.441806]
[1769020681146,12.83650905,2907.4,2905.5,3.54706791]
[1769020681352,12.83650905,2907.0,2905.5,0.002]
[1769020681647,12.83650905,2906.8,2905.5,0.002]
[1769020682253,13.40550905,2906.8,2905.5,0.002]
[1769020682937,12.83650905,2906.6,2905.5,0.002]
[1769020683137,0.569,2906.8,2905.5,0.002]
[1769020683138,12.83650905,2906.4,2905.5,0.002]
[1769020683344,19.71858467,2906.1,2905.5,0.002]
[1769020683730,23.15962248,2906.1,2905.5,0.002]
[1769020684037,19.71858467,2906.1,2904.9,0.002]
[1769020684253,20.28758467,2906.1,2904.9,0.002]
[1769020684469,8.52003497,2907.1,2904.9,0.002]
[1769020684470,12.83650905,2906.5,2905.0,0.10332357]
[1769020684747,12.83650905,2906.5,2904.9,0.002]
[1769020685320,3.44080101,2906.3,2904.9,0.002]
[1769020685557,6.88160202,2906.3,2904.9,0.002]
[1769020685759,3.44080101,2906.3,2905.0,0.10332357]
[1769020685930,3.44067747,2906.5,2905.2,12.49639853]
[1769020686332,6.88135494,2906.5,2905.2,0.10332357]
[1769020686558,19.71786399,2906.5,2905.2,0.10332357]
[1769020688456,19.71786399,2906.5,2905.2,2.542412]
[1769020688836,3.44067747,2906.5,2905.2,5.98450252]
[1769020689144,3.43986733,2907.1,2905.8,0.10332357]
[1769020689322,4.00886733,2907.1,2905.8,0.10332357]
[1769020689524,20.28524371,2907.1,2905.8,0.10332357]
[1769020689719,12.83650905,2907.0,2905.7,2.43908843]
[1769020690428,0.15332357,2905.6,2905.2,0.10332357]
[1769020690664,12.83650905,2906.5,2905.2,0.10332357]
[1769020690665,12.66866988,2906.5,2905.2,0.10332357]
[1769020690961,1.26686699,2906.4,2905.2,0.10332357]
[1769020691125,6.87973466,2907.1,2905.7,0.10332357]
[1769020691325,3.43979229,2907.2,2905.7,12.49639853]
[1769020691525,12.83650905,2907.7,2906.5,0.10332357]
[1769020691753,3.4403248,2907.6,2906.5,0.10332357]
[1769020691948,0.001,2907.6,2906.5,0.10332357]
[1769020692257,3.44027972,2907.6,2906.5,0.10332357]
[1769020692442,6.87955944,2907.6,2906.5,0.10332357]
[1769020692647,3.44027972,2907.6,2906.5,0.10332357]
[1769020692842,6.87955944,2907.6,2906.5,0.10332357]
[1769020693246,20.40402443,2907.6,2906.3,0.10332357]
[1769020693557,6.8789984,2907.4,2906.3,0.10332357]
[1769020693756,12.83650905,2907.3,2906.1,0.10332357]
[1769020694125,12.83650905,2907.3,2905.9,0.10332357]
[1769020694346,12.83650905,2907.1,2905.2,10.10332357]
[1769020694537,12.83650905,2906.9,2905.2,0.10332357]
[1769020694948,12.83650905,2906.9,2905.4,0.002]
[1769020695556,12.70617924,2906.7,2905.4,0.002]
[1769020695939,0.569,2906.6,2905.4,0.002]
[1769020696549,6.88041832,2906.8,2905.5,0.10332357]
[1769020696750,3.44020916,2906.8,2905.7,0.10332357]
[1769020697363,3.4401475,2906.9,2905.7,0.10332357]
[1769020697857,6.8797083,2907.1,2905.7,0.10332357]
[1769020698450,12.70617924,2907.0,2905.7,0.10332357]
[1769020699862,0.128,2907.4,2905.9,0.10332357]
[1769020700062,0.697,2907.4,2905.9,0.10332357]
[1769020700359,13.40317924,2907.4,2905.9,0.10332357]
[1769020700562,0.128,2907.2,2905.9,0.10332357]
[1769020702264,23.02574169,2907.1,2905.9,0.10332357]
[1769020702467,12.70617924,2907.0,2905.9,0.10332357]
[1769020702664,12.70617924,2907.0,2905.7,0.10332357]
[1769020702963,6.8797083,2907.1,2905.7,3.54477353]
[1769020703168,6.8797083,2907.1,2905.9,0.10332357]
[1769020703747,0.001,2907.0,2905.9,0.10332357]
[1769020704065,0.81695594,2907.6,2906.3,0.10332357]
[1769020704267,3.43938091,2907.5,2906.3,3.54411345]
[1769020704448,3.43938091,2907.5,2906.3,0.10332357]
[1769020704651,6.87876182,2907.5,2906.3,0.10332357]
[1769020704946,19.58494106,2907.5,2906.3,0.10332357]
[1769020705262,19.58494106,2907.5,2906.1,0.10332357]
[1769020705263,12.70617924,2907.4,2906.1,0.10332357]
[1769020705948,12.70617924,2907.4,2906.1,0.07510164]
[1769020706149,6.87923502,2907.3,2906.1,0.07510164]
[1769020706348,0.6879235,2907.2,2906.1,0.07510164]
[1769020706545,12.83417924,2907.1,2905.2,0.10332357]
[1769020706848,12.83417924,2907.1,2905.4,0.10532357]
[1769020707045,0.569,2907.0,2905.4,0.10532357]
[1769020707236,0.569,2907.0,2905.6,0.10332357]
[1769020707436,14.04649716,2906.9,2905.6,0.10332357]
[1769020708362,23.02680672,2906.8,2905.6,0.10332357]
[1769020708556,19.58659756,2906.8,2905.6,0.10332357]
[1769020709165,3.44020916,2906.8,2905.6,3.54488032]
[1769020709358,3.44020916,2906.8,2905.6,15.89996351]
[1769020710137,3.44020916,2906.8,2905.6,12.45840676]
[1769020710390,6.88041832,2906.8,2905.6,12.45840676]
[1769020710680,3.44020916,2906.8,2905.6,12.45840676]
[1769020710853,6.88041832,2906.8,2905.6,12.45840676]
[1769020711043,3.44020916,2906.8,2905.6,12.45840676]
[1769020711653,1.87160552,2908.6,2905.6,12.45840676]
[1769020711654,3.43938091,2907.5,2906.0,12.45840676]
[1769020711945,6.87876182,2907.5,2906.0,12.45840676]
[1769020712364,6.87876182,2907.5,2906.2,0.10332357]
[1769020713767,12.70617924,2907.4,2906.2,0.10332357]
[1769020713971,12.70617924,2907.4,2906.0,0.10332357]
[1769020714173,12.70617924,2907.2,2906.0,0.10332357]
[1769020714665,3.43985415,2907.1,2906.0,0.10332357]
[1769020714872,6.8797083,2907.1,2906.0,0.10332357]
[1769020715167,3.43985415,2907.1,2906.0,0.10332357]
[1769020715953,3.43978782,2907.2,2906.0,3.54442793]
[1769020716141,6.87957564,2907.2,2906.0,0.10332357]
[1769020716866,3.44067912,2907.3,2906.0,3.54446074]
[1769020717083,12.70518212,2908.1,2906.6,0.10332357]
[1769020717274,1.95822882,2908.0,2906.6,12.45840676]
[1769020718388,5.39710961,2908.0,2906.7,3.44032751]
[1769020718685,5.39710961,2908.0,2906.6,15.89881029]
[1769020718686,8.8359904,2908.0,2906.6,15.89881029]
[1769020718885,5.39710961,2908.0,2906.6,19.33925617]
[1769020719186,3.43868606,2908.1,2906.8,0.10332357]
[1769020719409,6.87568756,2908.8,2907.2,0.10332357]
[1769020719553,12.70617924,2908.7,2907.2,0.10332357]
[1769020719759,0.128,2908.6,2907.2,0.10332357]
[1769020720055,12.83417924,2908.6,2907.2,0.10332357]
[1769020720297,8.15981468,2908.5,2907.2,0.10332357]
[1769020720498,12.70617924,2908.4,2907.0,0.10332357]
[1769020720659,12.70617924,2908.4,2906.8,0.10332357]
[1769020722407,6.87686964,2908.3,2906.8,3.54346832]
[1769020722694,4.00743482,2908.3,2907.0,0.10332357]
[1769020722861,3.43843482,2908.3,2907.0,0.10332357]
[1769020723064,6.87686964,2908.3,2907.0,0.10332357]
[1769020723880,19.58304888,2908.3,2907.0,0.10332357]
[1769020724087,0.61133555,2908.3,2907.0,0.10332357]
[1769020724291,6.87672816,2908.4,2907.0,12.45840676]
[1769020725105,6.87672816,2908.4,2907.0,15.89831683]
[1769020725405,12.70617924,2908.3,2907.0,0.10332357]
[1769020725601,1.95829074,2908.2,2907.0,15.5390782]
[1769020725816,6.87672816,2908.4,2907.0,15.5390782]
[1769020726099,6.87672816,2908.4,2907.0,12.09912353]
[1769020726312,3.43836408,2908.4,2907.0,15.53908925]
[1769020726475,6.87672816,2908.4,2907.0,15.53908925]
[1769020726671,4.72167598,2908.5,2907.2,0.10332357]
[1769020726890,4.72167598,2908.5,2907.3,3.43961751]
[1769020727098,8.15993404,2908.5,2907.2,12.09912353]
[1769020727324,3.4377256,2908.9,2907.4,12.09912353]
[1769020727619,0.001,2909.1,2907.8,12.09912353]
[1769020727913,0.001,2909.1,2908.0,0.10332357]
[1769020728117,3.436808,2909.7,2908.2,0.10332357]
[1769020728328,0.569,2910.1,2908.6,0.10332357]
[1769020728474,12.37672327,2910.1,2908.6,0.10332357]
[1769020729098,6.87285222,2910.0,2908.6,0.10332357]
[1769020729405,19.24957549,2910.0,2908.6,0.10332357]
[1769020729627,3.43642611,2910.0,2908.6,18.97526414]
[1769020729781,3.4363459,2910.1,2908.8,0.10332357]
[1769020730218,6.8726918,2910.1,2908.8,0.10332357]
[1769020730803,3.4363459,2910.1,2908.8,0.10332357]
[1769020731190,19.37686703,2910.3,2908.8,0.10332357]
[1769020731384,19.37686703,2910.3,2908.8,3.54115642]
[1769020731812,19.37686703,2910.3,2908.8,0.10332357]
[1769020732015,1.9945867,2910.2,2908.8,3.54115624]
[1769020732787,1.9945867,2910.2,2908.8,0.10332357]
[1769020732987,14.37130997,2910.2,2908.8,0.10332357]
[1769020733185,6.87261606,2910.1,2908.8,0.10332357]
[1769020733524,12.37672327,2910.2,2908.8,18.97480583]
[1769020733700,15.81294483,2910.2,2908.8,18.97480583]
[1769020733884,12.37672327,2910.9,2909.6,0.10332357]
[1769020734281,6.87001922,2911.2,2909.6,0.10332357]
[1769020734517,12.37672327,2911.3,2909.8,0.10332357]
[1769020734708,15.81165289,2911.3,2909.8,12.09912353]
[1769020735026,19.24658251,2911.3,2910.0,0.10332357]
[1769020735387,22.68151213,2911.3,2910.0,0.10332357]
[1769020735787,19.24658251,2911.3,2910.0,0.04854374]
[1769020736296,12.37672327,2911.2,2909.6,3.54015089]
[1769020736498,12.37672327,2911.2,2909.6,0.10332357]
[1769020736706,12.37672327,2911.0,2909.6,0.10332357]
[1769020737216,12.37672327,2910.8,2909.6,0.10332357]
[1769020737394,12.37672327,2910.8,2909.4,1e-08]
[1769020737604,12.37672327,2910.6,2909.0,0.10332357]
[1769020738224,12.37672327,2910.6,2908.9,0.568]
[1769020738420,12.37672327,2910.4,2908.9,0.568]
[1769020738599,12.37672327,2910.4,2909.0,0.10332357]
[1769020738924,12.94472327,2910.4,2909.0,0.10332357]
[1769020739292,19.1176929,2910.3,2909.0,0.10332357]
[1769020739498,12.24554914,2910.2,2909.0,0.10332357]
[1769020740411,12.24554914,2910.2,2909.0,0.10532357]
[1769020740914,4.73040657,2910.5,2909.0,3.54292859]
[1769020741212,0.001,2911.1,2909.8,0.10332357]
[1769020741522,0.001,2911.1,2909.8,3.53990977]
[1769020741732,0.001,2911.1,2910.0,0.10332357]
[1769020742025,6.8688395,2911.7,2910.3,0.10332357]
[1769020742224,3.43394801,2912.1,2910.7,0.10332357]
[1769020742412,12.24554914,2912.0,2910.5,0.10332357]
[1769020742613,12.24554914,2911.8,2910.5,0.10332357]
[1769020743389,12.24554914,2911.6,2910.3,1e-08]
[1769020743610,12.24554914,2911.6,2910.0,0.10332357]
[1769020744000,12.24554914,2911.4,2910.0,1e-08]
[1769020744525,12.24554914,2911.4,2909.6,1e-08]
[1769020744699,12.24554914,2911.2,2909.6,1e-08]
[1769020744893,0.568,2911.1,2909.6,1e-08]
[1769020745232,1.28135491,2911.3,2909.9,0.10332357]
[1769020745429,6.86978324,2911.3,2909.9,0.10332357]
[1769020745735,6.86978324,2911.3,2910.3,0.10332357]
[1769020745736,3.43489162,2911.3,2910.3,0.10332357]
[1769020746032,3.43434035,2911.8,2910.3,0.10332357]
[1769020746033,6.9968395,2911.7,2910.3,0.10332357]
[1769020746541,3.43441975,2911.7,2910.5,0.10332357]
[1769020746831,6.8688395,2911.7,2910.5,0.10332357]
[1769020747819,14.15690182,2911.9,2910.5,0.10332357]
[1769020747820,6.8686036,2911.8,2910.5,0.10332357]
[1769020748712,10.3029054,2911.8,2910.5,0.10332357]
[1769020749020,6.8686036,2911.8,2910.5,0.10332357]
[1769020749825,3.4343018,2911.8,2910.7,0.10332357]
[1769020750010,6.8686036,2911.8,2910.7,0.10332357]
[1769020750813,19.11415274,2911.8,2910.7,0.10332357]
[1769020751211,12.24554914,2911.7,2910.3,0.10332357]
[1769020751837,3.43453771,2911.6,2910.5,0.10332357]
[1769020752012,2.15935054,2911.8,2910.7,0.10332357]
[1769020752013,3.43433737,2911.8,2910.7,0.10332357]
[1769020752612,6.86867474,2911.8,2910.7,0.10332357]
[1769020752854,8.14688603,2911.8,2910.7,0.10332357]
[1769020753138,0.001,2911.6,2910.7,0.10332357]
[1769020754128,0.001,2911.6,2910.5,1.79332357]
[1769020754339,12.24654914,2911.6,2910.3,1e-08]
[1769020754678,0.001,2911.6,2910.5,3.53915132]
[1769020755042,0.001,2911.6,2910.5,0.10332357]
[1769020755372,12.24654914,2911.6,2910.5,0.08402993]
[1769020755542,12.24654914,2911.6,2910.5,0.05580772]
[1769020755958,3.43465567,2911.5,2910.5,0.05580772]
[1769020756572,18.61407079,2911.5,2910.5,0.05580772]
[1769020756750,13.60626653,2911.4,2910.3,1e-08]
[1769020757557,13.60626653,2911.4,2910.5,0.10332357]
[1769020757741,13.60626653,2911.4,2910.3,1e-08]
[1769020758169,6.86978324,2911.3,2910.3,1e-08]
[1769020758546,13.60626653,2911.4,2910.3,1e-08]
[1769020758746,0.001,2911.6,2910.5,0.10332357]
[1769020759063,11.74475945,2912.2,2910.7,0.10332357]
[1769020759239,12.31275945,2912.2,2910.9,0.10332357]
[1769020759643,0.128,2912.5,2911.3,0.10332357]
[1769020759956,4.00159428,2912.4,2911.3,0.10332357]
[1769020760138,0.128,2912.5,2911.3,0.10332357]
[1769020760139,3.84675294,2912.3,2911.3,0.10332357]
[1769020760343,11.74475945,2913.0,2912.1,0.10332357]
[1769020760684,3.43276921,2913.1,2912.1,0.10332357]
[1769020761879,11.74475945,2913.0,2911.1,3.5384196]
[1769020762196,3.43324063,2912.7,2911.6,0.10332357]
[1769020762359,3.43315434,2912.8,2911.8,0.10332357]
[1769020762559,22.04422247,2912.8,2911.6,0.10332357]
[1769020762790,11.74475945,2912.7,2911.4,0.10332357]
[1769020763106,11.74475945,2912.5,2911.1,0.10332357]
[1769020763309,1.17447595,2912.4,2911.1,0.10332357]
[1769020763512,12.9192354,2912.4,2911.1,0.10332357]
[1769020764099,0.568,2912.3,2911.1,0.10332357]
[1769020764267,6.86789602,2912.1,2911.1,0.10332357]
[1769020764774,6.86789602,2912.1,2911.1,1e-08]
[1769020764967,13.606025,2912.0,2911.1,1e-08]
[1769020765172,13.606025,2912.0,2910.7,0.10332357]
[1769020765369,13.606025,2912.0,2909.9,0.10332357]
[1769020765575,13.606025,2912.0,2910.3,0.10332357]
[1769020765962,13.606025,2912.0,2910.3,0.01732061]
[1769020766159,3.43441975,2911.7,2910.6,0.10332357]
[1769020766365,12.31275945,2912.2,2911.0,0.10332357]
[1769020766565,10.30184403,2912.1,2911.0,1e-08]
[1769020766764,18.61265547,2912.1,2911.0,1e-08]
[1769020767191,11.74475945,2912.0,2910.8,1e-08]
[1769020767391,13.662825,2912.0,2910.6,0.10332357]
[1769020768698,18.61312717,2911.9,2910.6,0.10332357]
[1769020768999,18.61312717,2911.9,2910.8,0.10332357]
[1769020770097,11.74475945,2911.8,2910.6,0.10332357]
[1769020770300,13.79787872,2911.8,2910.4,0.10332357]
[1769020770491,6.8688395,2911.7,2910.4,0.10332357]
[1769020770884,18.61359895,2911.7,2910.4,0.10332357]
[1769020771698,15.1791792,2911.7,2910.6,0.10332357]
[1769020771900,4.60809085,2912.4,2910.8,0.10332357]
[1769020772104,6.86742436,2912.3,2911.2,0.10332357]
[1769020772504,3.43449071,2912.5,2911.6,0.10332357]
[1769020772874,6.86803596,2912.5,2911.6,0.10332357]
[1769020773210,3.43325869,2912.7,2911.6,0.10332357]
[1769020773387,4.9510605,2912.7,2911.6,0.10332357]
[1769020773707,6.86671702,2912.6,2911.6,0.10332357]
[1769020774001,6.86671702,2912.6,2910.5,3.53912796]
[1769020774002,11.74475945,2912.1,2910.5,3.53912796]
[1769020774171,12.31275945,2912.1,2910.7,0.10332357]
[1769020774369,1.28660026,2912.0,2910.7,0.10332357]
[1769020774575,18.61312717,2911.9,2910.9,0.10332357]
[1769020774786,18.61312717,2911.9,2910.7,1e-08]
[1769020774982,11.74475945,2911.8,2910.7,1e-08]
[1769020775672,11.74475945,2911.8,2910.5,1e-08]
[1769020775937,11.74475945,2911.8,2910.3,1e-08]
[1769020776114,11.74475945,2911.6,2910.3,1e-08]
[1769020776515,6.86931134,2911.5,2910.3,1e-08]
[1769020777093,3.77880928,2912.8,2910.3,1e-08]
[1769020777094,11.74475945,2912.1,2910.9,0.10332357]
[1769020777640,3.43406593,2912.0,2910.9,0.10332357]
[1769020777794,3.43406593,2912.0,2911.1,0.10332357]
[1769020777996,6.8681556,2912.0,2911.1,0.10332357]
[1769020778222,3.43406593,2912.0,2911.1,0.10332357]
[1769020778434,0.001,2912.5,2911.4,0.10332357]
[1769020778617,6.86718865,2912.4,2911.4,0.10332357]
[1769020778821,3.43359428,2912.4,2911.4,0.10332357]
[1769020779011,6.86718865,2912.4,2911.4,1e-08]
[1769020779633,3.43359428,2912.4,2911.4,1e-08]
[1769020779846,0.001,2912.5,2911.6,0.10332357]
[1769020780052,0.568,2912.7,2911.8,0.10332357]
[1769020780253,0.128,2912.9,2911.8,0.10332357]
[1769020780707,6.86624552,2912.8,2911.8,0.10332357]
[1769020780908,6.86624552,2912.8,2911.8,1e-08]
[1769020781111,18.61100497,2912.8,2911.8,1e-08]
[1769020781312,2.21720458,2912.7,2911.8,1e-08]
[1769020782213,0.128,2913.1,2911.8,1e-08]
[1769020782428,0.128,2913.1,2912.0,0.10332357]
[1769020782806,11.74475945,2912.9,2911.6,0.10332357]
[1769020783546,11.74475945,2912.9,2911.3,0.10332357]
[1769020783746,11.74475945,2912.9,2911.5,0.10332357]
[1769020783944,11.74475945,2912.7,2911.1,0.10332357]
[1769020784240,12.31275945,2912.6,2911.3,0.10332357]
[1769020784538,12.31275945,2912.6,2911.1,1e-08]
[1769020784716,11.74475945,2912.2,2911.1,1e-08]
[1769020784918,11.74475945,2912.2,2910.7,0.10332357]
[1769020785113,11.74475945,2912.0,2910.7,0.10332357]
[1769020785313,11.74475945,2912.0,2910.9,0.10332357]
[1769020785709,11.74475945,2912.0,2910.9,0.07510139]
[1769020786041,2.2045896,2912.1,2910.9,0.07510139]
[1769020786204,11.94756083,2912.2,2910.9,0.07510139]
[1769020786623,11.94756083,2912.2,2910.7,0.10332357]
[1769020786832,18.24745685,2912.1,2910.7,0.10332357]
[1769020787029,18.81545685,2912.1,2910.7,0.10332357]
[1769020787228,6.86789602,2912.1,2910.9,0.10332357]
[1769020787431,7.55468562,2912.1,2911.1,0.10332357]
[1769020788617,0.001,2912.0,2911.1,0.10332357]
[1769020789562,0.001,2912.0,2910.9,0.10332357]
[1769020789563,11.38056083,2912.0,2910.9,1e-08]
[1769020790146,11.38056083,2912.0,2910.3,1e-08]
[1769020790640,11.38056083,2912.0,2910.3,3.43600301]
[1769020790849,11.37956083,2911.7,2910.3,1e-08]